[Event "FTX Road to Miami Prelims 2022"]
[Site "Online"]
[Date "2022.07.04"]
[Round "4.6"]
[White "Wojtaszek, Radoslaw"]
[Black "Mamedyarov, Shakhriyar"]
[Result "1/2-1/2"]
[ECO "D46"]
[WhiteElo "2708"]
[BlackElo "2759"]
[Annotator "TA"]
[PlyCount "103"]
[EventDate "2022.07.10"]
[EventType "tourn"]
[EventCountry "NET"]
[SourceTitle "playchess.com"]
[Source "ChessBase"]
[SourceQuality "1"]
[TimeControl "40/5400+30:1800+30"]

{[%evp 17,103,-6,11,26,26,18,15,14,25,33,70,66,55,55,65,46,47,55,57,57,57,57,59,56,60,35,35,31,31,32,31,17,17,17,29,14,31,31,31,31,31,35,37,33,38,29,33,0,31,29,29,0,0,0,0,0,0,0,0,0,0,0,0,0,0,0,0,0,0,0,0,0,0,0,0,0,0,0,0,0,0,0,0,-25,0,0,0,0]} 1. d4 {[%emt 1:15:40]} d5 {[%emt 1:15:40]} 2. c4 {[%emt 0:00:23]} c6 {[%emt 0:00:21]} 3. Nf3 {[%emt 0:00:26]} Nf6 {[%emt 0:00:22]} 4. Nc3 {[%emt 0:00:24]} e6 {[%emt 0:00:23]} 5. e3 {[%emt 0:00:24]} Nbd7 {[%emt 0:00:22]} 6. Qc2 {[%emt 0:00:22]} Bd6 {[%emt 0:00:23]} 7. Bd3 {[%emt 0:00:39]} O-O {[%emt 0:00:26]} 8. O-O {[%emt 0:00:21]} dxc4 {[%emt 0:00:21]} 9. Bxc4 {[%emt 0:00:21]} c5 {[%emt 0:00:21]} 10. dxc5 {[%emt 0:00:53] D46: Semi-Slav: 5 e3 Nbd7 6 Bd3, Black avoids the Meran.} Bxc5 {[%emt 0:00:30]} 11. e4 {[%emt 0:00:33] White wants to play e5.} Qc7 {[%emt 0:05:03] Against e5} (11... Ng4 {is interesting.} 12. Bf4 Qf6 13. Bg3 Nde5) 12. Qe2 {[%emt 0:00:28] Threatens to win with e5.} Ne5 {[%emt 0:01:42]} 13. Bf4 {[%emt 0:04:28]} Nxf3+ {[%emt 0:00:32]} 14. Qxf3 {[%emt 0:00:22]} e5 {[%emt 0:00:22]} 15. Bg5 {[%emt 0:00:43]} Be7 {[%emt 0:00:21]} 16. Bb3 {[%emt 0:02:51] White is more active.} Be6 {[%emt 0:00:23]} 17. Rac1 {[%emt 0:00:59]} Qb6 {[%emt 0:00:59] [#]} 18. Bxf6 $146 {[%emt 0:01:59]} ({Predecessor:} 18. Be3 Qa6 19. Nd5 Bxd5 20. exd5 Bd6 21. Bg5 Nd7 22. Bc2 g6 23. Qh3 f5 24. Bh6 {1-0 (41) Kantsler,B (2519)-Lederman,L (2346) Israel 2002}) 18... Bxf6 {[%emt 0:00:25]} 19. Nd5 {[%emt 0:00:21]} Bxd5 {[%emt 0:00:31]} 20. Bxd5 {[%emt 0:00:20]} Rac8 {[%emt 0:00:50]} 21. b3 {[%emt 0:00:47]} Rc7 {[%emt 0:00:41]} 22. g3 {[%emt 0:01:44]} Rfc8 {[%emt 0:01:21]} 23. Rxc7 {[%emt 0:01:02]} Rxc7 {[%emt 0:00:42]} 24. Bc4 {[%emt 0:00:56]} g6 {[%emt 0:00:40]} 25. Rd1 {[%emt 0:00:25]} Kg7 {[%emt 0:00:25]} 26. Rd5 {[%emt 0:01:24]} a6 {[%emt 0:01:10]} 27. a4 {[%emt 0:00:39]} Qb4 {[%emt 0:03:56]} 28. Kg2 {[%emt 0:00:29]} Qe7 {[%emt 0:00:25]} 29. Qd3 {[%emt 0:00:40]} Qe8 {[%emt 0:00:22]} 30. h4 {[%emt 0:01:16]} h5 {[%emt 0:00:22]} 31. Qe3 {[%emt 0:01:09]} Qc8 {[%emt 0:01:20]} 32. Qd3 {[%emt 0:01:28]} Qe8 {[%emt 0:00:33]} 33. Qf3 {[%emt 0:00:42]} Rd7 {[%emt 0:00:48]} 34. Rxd7 {[%emt 0:01:03]} Qxd7 $11 {[%emt 0:00:22][%mdl 4096] Endgame KQB-KQB} 35. Bd5 {[%emt 0:00:26]} Qc7 {[%emt 0:00:38]} 36. Bc4 {[%emt 0:00:50]} a5 {[%emt 0:00:36]} 37. Bd5 {[%emt 0:00:38]} b6 {[%emt 0:00:27]} 38. Bc4 {[%emt 0:00:22]} Bd8 {[%emt 0:00:37]} 39. Qd3 {[%emt 0:00:27]} Be7 {[%emt 0:00:25]} 40. Qd5 {[%emt 0:00:32]} Bc5 {[%emt 0:00:29]} 41. Kf3 {[%emt 0:30:38]} Qe7 {[%emt 0:30:33] [#] Hoping for ...Qf6+.} 42. Kg2 {[%emt 0:00:32]} Qf6 {[%emt 0:00:27]} 43. f3 {[%emt 0:00:23]} Qe7 {[%emt 0:00:25]} 44. Kf1 {[%emt 0:00:31]} Be3 {[%emt 0:01:14]} 45. Kg2 {[%emt 0:00:22]} g5 {[%emt 0:00:29]} 46. hxg5 {[%emt 0:00:23]} Bxg5 {[%emt 0:00:20]} 47. Kf1 {[%emt 0:00:25]} h4 {[%emt 0:00:38]} 48. gxh4 {[%emt 0:00:24]} Bxh4 {[%emt 0:00:20]} 49. Ke2 {[%emt 0:00:24]} Bg5 {[%emt 0:00:28]} 50. Kd3 {[%emt 0:00:31]} Qd8 {[%emt 0:00:33]} 51. Qxd8 {[%emt 0:00:31]} Bxd8 {[%emt 0:00:27]} 52. Bd5 {[%emt 0:00:26] Weighted Error Value: White=0.04 (flawless) /Black=0.04 (flawless)} 1/2-1/2

[Event "FTX Road to Miami Prelims 2022"]
[Site "Online"]
[Date "2022.07.04"]
[Round "4.7"]
[White "Shankland, Sam"]
[Black "Duda, Jan-Krzysztof"]
[Result "0-1"]
[ECO "C43"]
[WhiteElo "2720"]
[BlackElo "2750"]
[Annotator "TA"]
[PlyCount "102"]
[EventDate "2022.07.10"]
[EventType "tourn"]
[EventCountry "NET"]
[SourceTitle "playchess.com"]
[Source "ChessBase"]
[SourceQuality "1"]
[TimeControl "40/5400+30:1800+30"]

{[%evp 16,102,12,11,0,0,0,0,31,0,0,0,16,27,27,12,0,0,22,-18,-6,-19,-20,-150,0,0,0,0,0,0,0,0,0,-41,-45,-48,-40,-44,-47,-64,-93,-64,-69,-112,-95,-120,-15,-15,-6,-10,-15,-15,-1,-334,-338,-315,-300,-491,-197,-200,0,0,0,0,0,-36,-36,-37,-37,-37,-37,-37,-37,-37,-52,-985,-849,-29947,-29955,-29963,-29966,-29967,-29968,-29965,-10553,-29973,-29971,-29979,-5122]} 1. e4 {[%emt 1:15:40]} e5 {[%emt 1:15:40]} 2. Nf3 {[%emt 0:00:24]} Nf6 {[%emt 0:00:22]} 3. d4 {[%emt 0:00:21]} Nxe4 {[%emt 0:00:22]} 4. Bd3 {[%emt 0:00:22]} d5 {[%emt 0:00:21]} 5. Nxe5 {[%emt 0:00:21]} Nd7 {[%emt 0:00:20]} 6. Nc3 {[%emt 0:00:20]} Nxc3 {[%emt 0:00:29]} 7. bxc3 {[%emt 0:00:22]} Bd6 $1 {[%emt 0:00:52][%mdl 4] outshines the older 7...Nxe5.} 8. O-O {[%emt 0:00:23]} O-O {[%emt 0:00:26]} 9. Re1 {[%emt 0:00:21]} c5 {[%emt 0:00:44] C43: Petroff Defence: 3 d4.} 10. Qf3 {[%emt 0:00:23]} c4 {[%emt 0:00:39]} 11. Bf5 {[%emt 0:00:22] [#]} Nb6 $1 $146 {[%emt 0:01:05][%mdl 8] The position is equal. A top novelty.} ({Predecessor:} 11... Nxe5 12. dxe5 Re8 13. Bxc8 Rxc8 14. Bg5 Be7 15. e6 fxe6 16. Rxe6 Bxg5 17. Rxe8+ Qxe8 18. Qxd5+ {½-½ (50) Nepomniachtchi,I (2773)-Dominguez Perez,L (2753) Bucharest 2022}) 12. Bxc8 {[%emt 0:00:46]} Qxc8 {[%emt 0:00:53]} 13. h4 {[%emt 0:01:31]} f6 {[%emt 0:00:56]} 14. Ng4 {[%emt 0:00:23]} Re8 {[%emt 0:00:49][%cal Re8e1,Bf8e8,Be8e4,Be4f4][%mdl 32]} 15. Bd2 {[%emt 0:03:28]} Re4 {[%emt 0:01:10]} 16. Ne3 {[%emt 0:00:38]} Rf4 {[%emt 0:01:27]} (16... Rxh4 $2 17. Nf5 Bh2+ 18. Kf1 $18) 17. Qh5 {[%emt 0:01:36][%cal Oe3c4]} g6 {[%emt 0:00:45]} 18. Qe2 {[%emt 0:01:40]} Rxh4 {[%emt 0:00:25]} 19. g3 {[%emt 0:00:23] [#]} (19. Qf3 $1 $11 {keeps the balance.} Rf4 20. Qd1) 19... Qh3 $1 {[%emt 0:02:16] Black is more active.} 20. Qf3 $11 {[%emt 0:00:28]} Bf4 {[%emt 0:01:28]} 21. a4 {[%emt 0:01:57]} Bxe3 {[%emt 0:02:18]} 22. Rxe3 {[%emt 0:01:11]} Qh2+ {[%emt 0:01:25]} 23. Kf1 {[%emt 0:00:22]} Rh5 {[%emt 0:00:21]} 24. g4 {[%emt 0:02:04]} Qh1+ {[%emt 0:00:39]} 25. Ke2 {[%emt 0:00:21]} Qxf3+ {[%emt 0:00:20]} ({Don't play} 25... Qxa1 26. gxh5 Qxa4 27. hxg6 $16) 26. Rxf3 {[%emt 0:00:22]} Re8+ {[%emt 0:00:29]} 27. Be3 {[%emt 0:00:23]} Rh4 {[%emt 0:00:59]} 28. Rxf6 {[%emt 0:00:22]} Rxg4 {[%emt 0:00:42]} 29. a5 {[%emt 0:02:08]} Nc8 {[%emt 0:00:25] ...Kg7 is the strong threat.} 30. a6 {[%emt 0:00:22]} bxa6 {[%emt 0:00:33]} (30... b6 $1 $17 {And now ...Rge4 would win.} 31. Rb1 Ne7) 31. Raxa6 {[%emt 0:01:00]} Rge4 {[%emt 0:02:28]} 32. Ra5 {[%emt 0:01:25]} Ne7 {[%emt 0:00:55] Threatens to win with ...Nf5.} 33. Rxa7 {[%emt 0:01:07]} ({Avoid the trap} 33. f3 $2 Rxe3+ $1 {[%mdl 512]} 34. Kxe3 Nc6+ 35. Kf4 Nxa5 $19) 33... Nf5 {[%emt 0:00:32][%cal Rf5e3]} 34. Kd2 {[%emt 0:01:03][%mdl 8192]} (34. Rff7 $11 {and White has nothing to worry.}) 34... Nxe3 $19 {[%emt 0:02:05]} 35. fxe3 {[%emt 0:00:26]} Rxe3 {[%emt 0:00:24][%mdl 4096] Endgame KRR-KRR} 36. Rff7 $2 {[%emt 0:00:29]} (36. Rf2 R3e7 37. Ra5) 36... Rh3 {[%emt 0:00:21]} (36... Re2+ $142 37. Kc1 Re1+ 38. Kb2 Rb8+ 39. Ka2 Rbb1) 37. Rfd7 {[%emt 0:00:31]} Rh1 $2 {[%emt 0:00:23]} ({Better is} 37... Rh2+ $19 38. Kc1 Rh5) 38. Rxd5 $11 {[%emt 0:00:34]} Rhe1 {[%emt 0:00:53][%csl Ge1][%cal Re8e2]} 39. Rd8 $1 {[%emt 0:00:39]} h5 {[%emt 0:00:22][%cal Bh7h5,Bh5h4,Bh4h3,Bh3h2][%mdl 32]} 40. Rxe8+ {[%emt 0:01:45]} Rxe8 {[%emt 0:00:20] KR-KR} 41. Rc7 {[%emt 0:30:21]} h4 {[%emt 0:30:28] White must now prevent ...h3.} 42. Rxc4 {[%emt 0:00:21]} Kg7 {[%emt 0:01:41] Hoping for ...h3.} 43. d5 {[%emt 0:00:44]} g5 {[%emt 0:00:20][%mdl 1024] Strongly threatening ...h3. Black has compensation.} 44. Rg4 {[%emt 0:01:06]} Kg6 {[%emt 0:00:38]} 45. d6 $2 {[%emt 0:00:43][%mdl 8192]} (45. Rg1 $15) 45... Kh5 $19 {[%emt 0:01:11]} ({Inferior is} 45... Rd8 46. Rd4 $11) 46. Rd4 {[%emt 0:00:32] [#]} h3 $1 {[%emt 0:00:25]} 47. d7 {[%emt 0:00:21]} Rd8 {[%emt 0:00:21]} 48. Ke3 {[%emt 0:00:26]} h2 {[%emt 0:00:22]} 49. Rd1 {[%emt 0:00:22]} Kg4 {[%emt 0:00:23][%cal Od8d7] ( -> ...Rxd7!)} (49... Rxd7 50. Rxd7 Kg4 51. Rh7 Kf5 52. Rxh2 g4 53. c4 g3 54. Rd2) 50. Kf2 {[%emt 0:00:38] [#]} Rxd7 $3 {[%emt 0:00:26][%mdl 512]} 51. Re1 {[%emt 0:00:26]} (51. Rxd7 h1=Q) 51... Rd2+ {[%emt 0:00:25] Weighted Error Value: White=0.82/Black=0.23 (precise)} 0-1

[Event "FTX Road to Miami Prelims 2022"]
[Site "Online"]
[Date "2022.07.04"]
[Round "4.8"]
[White "Wei, Yi"]
[Black "Dominguez Perez, Leinier"]
[Result "1-0"]
[ECO "C42"]
[WhiteElo "2727"]
[BlackElo "2754"]
[Annotator "TA"]
[PlyCount "129"]
[EventDate "2022.07.10"]
[EventType "tourn"]
[EventCountry "NET"]
[SourceTitle "playchess.com"]
[Source "ChessBase"]
[SourceQuality "1"]
[TimeControl "40/5400+30:1800+30"]

{[%evp 18,129,33,12,47,13,29,10,12,5,7,10,4,6,7,7,7,8,8,8,9,5,3,8,9,6,5,1,5,0,0,0,0,0,0,0,0,-8,8,8,8,8,8,0,162,172,160,167,171,171,171,171,171,180,180,179,317,317,310,310,294,294,304,330,304,304,304,274,449,431,628,353,743,735,618,609,942,891,742,725,701,588,706,672,605,588,5150,4692,6985,6556,2295,589,29966,29966,29966,29967,29972,29973,29973,29974,29972,29972,29974,29975,29976,29976,29979,29980,29980,29981,29980,29971,29982,29983]} 1. e4 {[%emt 1:15:40]} e5 {[%emt 1:15:40]} 2. Nf3 {[%emt 0:00:22]} Nf6 {[%emt 0:00:21]} 3. Nxe5 {[%emt 0:00:26]} d6 {[%emt 0:00:21]} 4. Nf3 {[%emt 0:00:21]} Nxe4 {[%emt 0:00:21]} 5. d4 {[%emt 0:00:21]} d5 {[%emt 0:00:22]} 6. Bd3 {[%emt 0:00:21]} Bd6 {[%emt 0:00:21]} 7. O-O {[%emt 0:00:27]} O-O {[%emt 0:00:21]} 8. c4 {[%emt 0:00:21]} c6 {[%emt 0:00:20]} 9. Re1 {[%emt 0:00:22]} Bf5 {[%emt 0:00:25]} 10. Qb3 {[%emt 0:00:22]} Qd7 {[%emt 0:00:22] C42: Petroff Defence: 3 Nxe5 and unusual White 3rd moves.} 11. c5 {[%emt 0:00:26]} Bc7 {[%emt 0:00:22]} 12. Nbd2 {[%emt 0:00:21][%cal Rd2e4]} Re8 {[%emt 0:01:54] The position is equal.} 13. Nh4 {[%emt 0:00:32]} Be6 {[%emt 0:01:10]} 14. Qc2 {[%emt 0:00:28]} Na6 {[%emt 0:00:28]} 15. a3 {[%emt 0:00:24] [#] Prevents Nb4.} Bg4 $146 {[%emt 0:00:28]} ({Predecessor:} 15... f5 16. Nhf3 Qe7 17. b4 Nb8 18. Ne5 Nd7 19. Ndf3 Nxe5 20. Nxe5 a5 21. Bb2 Qg5 {0-1 (69) Satosuo,R (2015)-Freire,D (2043) ICCF email 2014}) 16. Nxe4 {[%emt 0:01:12]} (16. Re3 {is more complex.} Qd8 17. Ndf3 Qe7 18. b4) 16... dxe4 {[%emt 0:00:22]} 17. Rxe4 {[%emt 0:00:21]} Rxe4 {[%emt 0:01:06]} 18. Bxe4 {[%emt 0:00:21]} Qxd4 {[%emt 0:00:21]} 19. Be3 {[%emt 0:00:24]} Qf6 $1 {[%emt 0:00:27]} ({But not} 19... Qe5 20. Bxh7+ Kh8 21. g3 $16) 20. Nf3 {[%emt 0:00:22]} Bxf3 {[%emt 0:01:44]} 21. Bxf3 {[%emt 0:00:34]} Rd8 {[%emt 0:00:25]} 22. Rd1 {[%emt 0:04:56]} Rxd1+ {[%emt 0:03:50]} 23. Qxd1 {[%emt 0:00:24]} Qxb2 {[%emt 0:04:09]} 24. Qd7 {[%emt 0:00:33][%cal Rd7e8]} Qb1+ {[%emt 0:01:51]} 25. Bd1 {[%emt 0:00:23][%cal Rd7e8] Really sharp!} h5 {[%emt 0:01:24]} 26. g3 {[%emt 0:02:29]} Nb8 {[%emt 0:00:23]} 27. Qd4 $40 {[%emt 0:01:05][%mdl 128] Black needs to defend precisely.} g6 {[%emt 0:01:08][%cal Oc7e5]} 28. Kg2 {[%emt 0:01:24] And now Bh6 would win.} Qf5 {[%emt 0:00:22]} 29. Qb2 {[%emt 0:01:02]} h4 {[%emt 0:02:36]} 30. Qxb7 {[%emt 0:01:48]} Qd5+ $2 {[%emt 0:00:33] Black is now going downhill.} (30... h3+ $1 $11 {and Black stays safe.} 31. Kf1 Qd3+ 32. Be2 Qe4) 31. Bf3 $18 {[%emt 0:00:33]} h3+ {[%emt 0:00:22]} 32. Kxh3 {[%emt 0:00:29]} Qxf3 {[%emt 0:00:21]} 33. Qxc7 $16 {[%emt 0:01:19][%mdl 4096] Endgame KQB-KQN} Qh5+ {[%emt 0:00:22]} 34. Kg2 {[%emt 0:00:21]} Qd5+ {[%emt 0:00:21]} 35. f3 {[%emt 0:00:29]} Nd7 {[%emt 0:00:42]} 36. Qd6 {[%emt 0:01:53] Qxd5 is the strong threat.} ({Inferior is} 36. Qxa7 Ne5 37. Qb8+ Kh7 $17) 36... Ne5 {[%emt 0:00:44]} (36... Qe5 {was necessary.}) 37. Qxd5 $18 {[%emt 0:00:33]} cxd5 {[%emt 0:00:20] KB-KN} 38. Kf2 {[%emt 0:00:30]} Nc6 {[%emt 0:00:39]} 39. g4 {[%emt 0:01:21]} f6 {[%emt 0:00:41]} 40. h4 {[%emt 0:00:46][%cal Bh2h4,Bh4h5][%mdl 32]} Kf7 {[%emt 0:00:29]} 41. h5 {[%emt 0:30:38]} Kg7 {[%emt 0:30:32]} 42. Bd2 {[%emt 0:01:02]} a6 $2 {[%emt 0:00:25]} (42... Kh7 43. Bf4 Kg7) 43. Kg3 {[%emt 0:00:31]} Kf7 {[%emt 0:01:12]} (43... Kh7 $142 44. Kf4 Ne5) 44. Kf4 {[%emt 0:00:32] aiming for Bc3.} Kg7 $2 {[%emt 0:00:35]} (44... Ne5 45. Bb4 Nc6) 45. Bc3 {[%emt 0:00:26]} Kf7 {[%emt 0:00:37]} 46. Bb2 {[%emt 0:00:56]} Nd8 {[%emt 0:00:58]} 47. h6 {[%emt 0:00:48]} Ne6+ {[%emt 0:00:31]} 48. Ke3 {[%emt 0:00:21] Threatens to win with c6.} Nxc5 {[%emt 0:00:26]} 49. h7 {[%emt 0:00:30]} Kg7 {[%emt 0:00:23] [#]} 50. Bxf6+ $1 {[%emt 0:00:21][%mdl 512]} Kxh7 {[%emt 0:00:21]} 51. Kd4 {[%emt 0:00:22][%csl LRc5,LRd5]} Nb3+ {[%emt 0:00:41]} 52. Kxd5 {[%emt 0:00:22]} Nd2 {[%emt 0:00:21]} 53. f4 {[%emt 0:00:22]} Kg8 {[%emt 0:00:30]} 54. Bc3 {[%emt 0:00:36]} (54. a4 $142 {White wants to mate with Bc3.} Kf7 55. Bc3) 54... Nf1 {[%emt 0:00:37]} 55. Kc6 {[%emt 0:00:50] White mates.} Ne3 {[%emt 0:00:24]} 56. Kb7 {[%emt 0:00:29]} Nc4 {[%emt 0:00:48]} 57. a4 {[%emt 0:00:29]} a5 {[%emt 0:00:21]} 58. Ka6 {[%emt 0:00:25]} Kf7 {[%emt 0:00:21]} 59. Kb5 {[%emt 0:00:31]} Ne3 {[%emt 0:00:22]} 60. Bxa5 {[%emt 0:00:59]} Ke6 {[%emt 0:00:29]} 61. Kc6 {[%emt 0:00:35]} Nxg4 {[%emt 0:00:36]} 62. Bc3 {[%emt 0:00:34]} Ne3 {[%emt 0:00:45]} 63. a5 {[%emt 0:00:21][%cal Ba4a5,Ba5a6][%mdl 32]} Nd5 {[%emt 0:00:25] [#]} 64. a6 $1 {[%emt 0:00:26]} Ne7+ {[%emt 0:00:37]} (64... Nxc3 65. a7) 65. Kb7 {[%emt 0:00:22] Weighted Error Value: White=0.23 (precise) /Black=0.34} 1-0

[Event "FTX Road to Miami Prelims 2022"]
[Site "Online"]
[Date "2022.07.04"]
[Round "5.1"]
[White "Dominguez Perez, Leinier"]
[Black "Niemann, Hans Moke"]
[Result "0-1"]
[ECO "B12"]
[WhiteElo "2754"]
[BlackElo "2688"]
[Annotator "ChessBase"]
[PlyCount "70"]
[EventDate "2022.07.10"]
[EventType "tourn"]
[EventCountry "NET"]
[SourceTitle "playchess.com"]
[Source "ChessBase"]
[SourceQuality "1"]
[TimeControl "40/5400+30:1800+30"]

1. e4 {[%emt 1:15:40]} c6 {[%emt 1:15:40]} 2. d4 {[%emt 0:00:23]} d5 {[%emt 0:00:22]} 3. e5 {[%emt 0:00:20]} Bf5 {[%emt 0:00:23]} 4. Nd2 {[%emt 0:00:21]} e6 {[%emt 0:00:27]} 5. Nb3 {[%emt 0:00:22]} Ne7 {[%emt 0:00:21]} 6. Nf3 {[%emt 0:00:23]} h6 {[%emt 0:00:21]} 7. Be2 {[%emt 0:00:21]} Nd7 {[%emt 0:00:22]} 8. O-O {[%emt 0:00:22]} g5 {[%emt 0:00:23]} 9. a4 {[%emt 0:00:27]} Bg7 {[%emt 0:00:23]} 10. a5 {[%emt 0:00:30]} O-O {[%emt 0:00:31]} 11. c3 {[%emt 0:00:44]} Rc8 {[%emt 0:00:59]} 12. Be3 {[%emt 0:04:18]} Ng6 {[%emt 0:00:27]} 13. Ne1 {[%emt 0:00:36]} Nf4 {[%emt 0:01:12]} 14. Bxf4 {[%emt 0:00:21]} gxf4 {[%emt 0:00:20]} 15. Bd3 {[%emt 0:00:21]} Qg5 {[%emt 0:00:30]} 16. Nd2 {[%emt 0:01:16]} f6 {[%emt 0:01:09]} 17. Ndf3 {[%emt 0:00:32]} Qh5 {[%emt 0:00:23]} 18. Bxf5 {[%emt 0:01:21]} Qxf5 {[%emt 0:00:20]} 19. exf6 {[%emt 0:00:41]} Nxf6 {[%emt 0:00:24]} 20. Nd3 {[%emt 0:00:44]} Ne4 {[%emt 0:00:22]} 21. Nfe5 {[%emt 0:00:45]} Rc7 {[%emt 0:00:42]} 22. f3 {[%emt 0:00:48]} Nd6 {[%emt 0:00:22]} 23. Re1 {[%emt 0:00:30]} h5 {[%emt 0:00:31]} 24. b4 {[%emt 0:01:13]} Bxe5 {[%emt 0:02:01]} 25. Rxe5 {[%emt 0:00:47]} Qg6 {[%emt 0:00:23]} 26. Qe2 {[%emt 0:01:07]} Rf6 {[%emt 0:00:26]} 27. Re1 {[%emt 0:00:29]} Nf7 {[%emt 0:01:02]} 28. Nc5 {[%emt 0:03:37]} Nxe5 {[%emt 0:00:27]} 29. Qxe5 {[%emt 0:00:21]} Rg7 {[%emt 0:01:15]} 30. Qe2 {[%emt 0:00:50]} Qf5 {[%emt 0:01:00]} 31. Rf1 {[%emt 0:00:23]} h4 {[%emt 0:00:30]} 32. Rf2 {[%emt 0:01:31]} h3 {[%emt 0:00:23]} 33. Nd3 {[%emt 0:00:49]} hxg2 {[%emt 0:00:25]} 34. Qd1 {[%emt 0:01:23]} Qh3 {[%emt 0:00:25]} 35. Qc1 {[%emt 0:00:45]} Qxh2+ {[%emt 0:00:25]} 0-1

[Event "FTX Road to Miami Prelims 2022"]
[Site "Online"]
[Date "2022.07.04"]
[Round "5.2"]
[White "Duda, Jan-Krzysztof"]
[Black "Wei, Yi"]
[Result "1-0"]
[ECO "B51"]
[WhiteElo "2750"]
[BlackElo "2727"]
[Annotator "ChessBase"]
[PlyCount "45"]
[EventDate "2022.07.10"]
[EventType "tourn"]
[EventCountry "NET"]
[SourceTitle "playchess.com"]
[Source "ChessBase"]
[SourceQuality "1"]
[TimeControl "40/5400+30:1800+30"]

1. e4 {[%emt 1:15:40]} c5 {[%emt 1:15:40]} 2. Nf3 {[%emt 0:00:22]} d6 {[%emt 0:00:21]} 3. Bb5+ {[%emt 0:00:21]} Nd7 {[%emt 0:00:24]} 4. Ba4 {[%emt 0:00:21]} Ngf6 {[%emt 0:00:29]} 5. d3 {[%emt 0:00:22]} a6 {[%emt 0:01:13]} 6. c4 {[%emt 0:00:27]} g6 {[%emt 0:00:24]} 7. Nc3 {[%emt 0:00:27]} Bg7 {[%emt 0:00:21]} 8. O-O {[%emt 0:00:25]} O-O {[%emt 0:00:24]} 9. h3 {[%emt 0:00:23]} Ne5 {[%emt 0:04:17]} 10. Nxe5 {[%emt 0:00:47]} dxe5 {[%emt 0:00:23]} 11. Be3 {[%emt 0:00:20]} b6 {[%emt 0:00:21]} 12. Rb1 {[%emt 0:00:50]} Qd6 {[%emt 0:00:58]} 13. a3 {[%emt 0:00:52]} Rd8 {[%emt 0:03:46]} 14. b4 {[%emt 0:02:03]} cxb4 {[%emt 0:02:05]} 15. axb4 {[%emt 0:00:31]} e6 {[%emt 0:01:09]} 16. Qf3 {[%emt 0:03:23]} Nd7 {[%emt 0:01:04]} 17. Rfd1 {[%emt 0:00:46]} Qc7 {[%emt 0:00:26]} 18. Rb3 {[%emt 0:01:16]} b5 {[%emt 0:01:50]} 19. cxb5 {[%emt 0:00:35]} Nb6 {[%emt 0:00:21]} 20. bxa6 {[%emt 0:01:42]} Bxa6 {[%emt 0:00:28]} 21. Bb5 {[%emt 0:00:43]} Bxb5 {[%emt 0:02:09]} 22. Nxb5 {[%emt 0:00:20]} Qc6 {[%emt 0:01:48]} 23. Na3 {[%emt 0:00:48]} 1-0

[Event "FTX Road to Miami Prelims 2022"]
[Site "Online"]
[Date "2022.07.04"]
[Round "5.3"]
[White "Mamedyarov, Shakhriyar"]
[Black "Shankland, Sam"]
[Result "1/2-1/2"]
[ECO "D77"]
[WhiteElo "2759"]
[BlackElo "2720"]
[Annotator "ChessBase"]
[PlyCount "58"]
[EventDate "2022.07.10"]
[EventType "tourn"]
[EventCountry "NET"]
[SourceTitle "playchess.com"]
[Source "ChessBase"]
[SourceQuality "1"]
[TimeControl "40/5400+30:1800+30"]

1. d4 {[%emt 1:15:40]} Nf6 {[%emt 1:15:40]} 2. c4 {[%emt 0:00:27]} g6 {[%emt 0:00:22]} 3. g3 {[%emt 0:00:27]} Bg7 {[%emt 0:00:22]} 4. Bg2 {[%emt 0:00:22]} O-O {[%emt 0:00:21]} 5. Nf3 {[%emt 0:00:27]} d5 {[%emt 0:00:49]} 6. O-O {[%emt 0:00:26]} dxc4 {[%emt 0:00:50]} 7. Na3 {[%emt 0:00:21]} c3 {[%emt 0:00:21]} 8. bxc3 {[%emt 0:00:21]} c5 {[%emt 0:00:21]} 9. Bb2 {[%emt 0:00:50]} Nc6 {[%emt 0:00:36]} 10. e3 {[%emt 0:00:21]} Be6 {[%emt 0:01:13]} 11. Qe2 {[%emt 0:00:26]} Rc8 {[%emt 0:01:12]} 12. e4 {[%emt 0:01:41]} Bg4 {[%emt 0:00:38]} 13. Rfd1 {[%emt 0:00:40]} Nd7 {[%emt 0:01:01]} 14. h3 {[%emt 0:02:18]} Bxf3 {[%emt 0:00:24]} 15. Bxf3 {[%emt 0:00:20]} cxd4 {[%emt 0:02:30]} 16. cxd4 {[%emt 0:00:20]} Qa5 {[%emt 0:00:46]} 17. e5 {[%emt 0:02:07]} Nb6 {[%emt 0:00:40]} 18. Rac1 {[%emt 0:00:53]} Rfd8 {[%emt 0:01:32]} 19. Kg2 {[%emt 0:02:55]} e6 {[%emt 0:01:38]} 20. Qb5 {[%emt 0:01:51]} Qa4 {[%emt 0:01:59]} 21. Qxa4 {[%emt 0:01:42]} Nxa4 {[%emt 0:00:23]} 22. Ba1 {[%emt 0:00:20]} Bf8 {[%emt 0:02:01]} 23. Nc4 {[%emt 0:01:15]} Nb4 {[%emt 0:00:52]} 24. Bxb7 {[%emt 0:01:43]} Nxa2 {[%emt 0:00:29]} 25. Bxc8 {[%emt 0:00:40]} Rxc8 {[%emt 0:01:20]} 26. Rc2 {[%emt 0:00:32]} Nb4 {[%emt 0:00:21]} 27. Rcc1 {[%emt 0:00:21]} Na2 {[%emt 0:00:21]} 28. Rc2 {[%emt 0:00:42]} Nb4 {[%emt 0:00:22]} 29. Rcc1 {[%emt 0:00:21]} Na2 {[%emt 0:00:21]} 1/2-1/2